fUSD/lending_fUSD_20250127
["ID","MTS","AMOUNT","RATE_DAILY","PERIOD"]
[350590169,1737979839952,-1438.0,0.0001078,2]
[350590171,1737979839962,-47326.97940622,0.0001078,2]
[350590172,1737979840007,-195247.590688,0.0001078,2]
[350590173,1737979840018,-664.75032259,0.0001078,2]
[350590174,1737979840029,-835.68851116,0.0001078,2]
[350590175,1737979840062,-1675.4325882,0.0001078,2]
[350590176,1737979840073,-990.69803321,0.0001078,2]
[350590177,1737979840085,-2736.39119504,0.0001078,2]
[350590178,1737979840097,-20000.0,0.0001078,2]
[350590179,1737979840117,-1538.245088,0.0001078,2]
[350590180,1737979840274,-2073.13415802,0.0001078,2]
[350590181,1737979840329,-763.68533088,0.0001078,2]
[350590182,1737979840343,-3185.0,0.0001078,2]
[350590201,1737979843319,-3771.173325,0.0001078,2]
[350590202,1737979843432,-39633.9926,0.0001078,2]
[350590203,1737979843444,-14372.74776098,0.0001078,2]
[350590204,1737979843488,-17476.08560783,0.0001078,2]
[350590205,1737979843499,-73901.97801753,0.0001078,2]
[350590235,1737979845958,-647.78682822,0.0001078,2]
[350590236,1737979846012,-11655.13220433,0.0001078,2]
[350590237,1737979846067,-1128.46408278,0.0001078,2]
[350590238,1737979846078,-11729.63888537,0.0001078,2]
[350590239,1737979846089,-254656.38074633,0.0001078,2]
[350590240,1737979846122,-298.267344,0.0001078,2]
[350590241,1737979846134,-15389.58024686,0.0001078,2]
[350590242,1737979846145,-531.41457158,0.0001078,2]
[350590243,1737979846178,-3120.0000015,0.0001078,2]
[350590244,1737979846287,-3372.53911688,0.0001078,2]
[350590245,1737979934944,752.95,8.219e-05,2]
[350590251,1737980497705,250.0,9.489e-05,2]
[350590252,1737980543319,7194.9,9.4e-05,2]
[350590253,1737980543341,10000.0,9.4e-05,2]
[350590254,1737980543362,5019.63,9.4e-05,2]
[350590256,1737980708954,1000.0,9.406e-05,2]
[350590257,1737980726649,200.0,9.413e-05,2]
[350590262,1737980763915,169.92,9.434e-05,2]
[350590281,1737980923114,595.78,9.399e-05,2]
[350590286,1737980955820,804.15,9.476e-05,2]
[350590313,1737981032191,-909.86740824,9.6e-05,2]
[350590314,1737981032355,-540.0,9.6e-05,2]
[350590315,1737981032366,-535.47,9.6e-05,2]
[350590316,1737981032378,-521.22259176,9.6e-05,2]
[350590317,1737981032387,-687.18,9.63e-05,2]
[350590318,1737981032397,-166.77744666,9.63e-05,2]
[350590319,1737981032406,-547.71,9.761e-05,2]
[350590320,1737981032415,-300.0,9.797e-05,2]
[350590321,1737981032425,-4760.32461344,9.798e-05,2]
[350590322,1737981032434,-3155.54,9.798e-05,2]
[350590323,1737981032443,-716.79132,9.8e-05,2]
[350590324,1737981032452,-438.93,9.941e-05,2]
[350590325,1737981032462,-250.0,9.945e-05,2]
[350590326,1737981032471,-250.0,9.949e-05,2]
[350590327,1737981032480,-150.0,9.978e-05,2]
[350590328,1737981032490,-438.12,9.978e-05,2]
[350590329,1737981032499,-150.0,9.978e-05,2]
[350590330,1737981032509,-150.0,9.978e-05,2]
[350590331,1737981032519,-265.14,9.997e-05,2]
[350590332,1737981032527,-150.0,0.0001,2]
[350590333,1737981032537,-150.0,0.0001,2]
[350590334,1737981032546,-438.12,0.0001,2]
[350590335,1737981032735,-150.0,0.0001,2]
[350590336,1737981032750,-150.0,0.0001,2]
[350590337,1737981032760,-150.0,0.0001,2]
[350590338,1737981032770,-438.12,0.0001,2]
[350590339,1737981032779,-150.0,0.0001,2]
[350590340,1737981032788,-150.0,0.00010078,2]
[350590341,1737981032798,-438.12,0.00010078,2]
[350590342,1737981032807,-150.0,0.00010078,2]
[350590344,1737981032817,-300.0,0.00010078,2]
[350590346,1737981032826,-438.12,0.00010078,2]
[350590348,1737981032836,-150.0,0.00010078,2]
[350590349,1737981032847,-300.0,0.00010178,2]
[350590351,1737981032858,-150.0,0.00010178,2]
[350590353,1737981032867,-150.0,0.00010299,2]
[350590355,1737981032877,-299.35,0.000103,2]
[350590357,1737981032886,-438.12,0.000103,2]
[350590359,1737981032895,-983.1,0.000103,2]
[350590361,1737981032904,-150.0,0.000103,2]
[350590363,1737981032912,-150.0,0.000103,2]
[350590365,1737981032921,-438.93,0.000103,2]
[350590367,1737981032930,-150.0,0.000103,2]
[350590369,1737981032939,-773.87,0.000103,2]
[350590370,1737981032948,-174.43,0.00010336,2]
[350590372,1737981032957,-166.77744666,0.00010375,2]
[350590374,1737981032966,-20348.72940208,0.00010475,2]
[350590378,1737981032994,-3861.16061818,0.00010475,2]
[350590382,1737981033018,-295.49189213,0.00010475,2]
[350590384,1737981033029,-1710.11950921,0.00010475,2]
[350590386,1737981033041,-550.0,0.00010475,2]
[350590389,1737981033052,-1395.09553501,0.00010475,2]
[350590393,1737981033080,-2011.94000034,0.00010475,2]
[350590395,1737981033093,-5244.38900129,0.00010475,2]
[350590397,1737981033105,-2238.46326008,0.00010475,2]
[350590399,1737981033116,-18534.57078168,0.00010475,2]
[350590401,1737981033126,-1113.64,0.00010475,2]
[350590403,1737981033135,-9991.18,0.00010475,2]
[350590405,1737981033145,-638.19,0.00010475,2]
[350590407,1737981033155,-3485.5,0.00010475,2]
[350590409,1737981033164,-299.99,0.00010475,2]
[350590411,1737981033174,-1446.02,0.00010475,2]
[350590413,1737981033183,-4608.50750927,0.00010475,2]
[350590417,1737981033212,-654.8849657,0.00010475,2]
[350590419,1737981033223,-4736.59752503,0.00010475,2]
[350590421,1737981033233,-150.99,0.00010475,2]
[350590423,1737981033242,-292.56,0.00010475,2]
[350590425,1737981033252,-46.34674999,0.00010475,2]
[350590428,1737981033264,-282.27325001,0.00010475,2]
[350590430,1737981033274,-1974.76643915,0.00010475,2]
[350590434,1737981033310,-8025.22356085,0.00010475,2]
[350590436,1737981033320,-150.99,0.00010475,2]
[350590438,1737981033329,-467.08,0.00010475,2]
[350590440,1737981033338,-999.99,0.00010475,2]
[350590442,1737981033349,-732.08143915,0.00010475,2]
[350590709,1737981038079,-500.56864669,9.598e-05,2]
[350590710,1737981038138,-621.7204997,9.598e-05,2]
[350590711,1737981038199,-730.13085361,9.598e-05,2]
[350590712,1737981038208,-175.70023419,0.00010475,2]
[350590713,1737981038259,-442.73405751,0.00010475,2]
[350590714,1737981038324,-1176.12105923,0.00010475,2]
[350590715,1737981038336,-998.33356086,0.00010475,2]
[350590716,1737981038383,-2254.88152453,0.00010475,2]
[350590717,1737981038394,-1054.384999,0.00010475,2]
[350590838,1737981040177,-438.68061457,0.00010475,2]
[350590839,1737981040236,-421.77,0.00010475,2]
[350590840,1737981040508,-2305.30251096,0.00010475,2]
[350590841,1737981040519,-752.95,0.0001048,2]
[350590842,1737981040529,-983.1,0.000105,2]
[350590843,1737981040539,-150.0,0.000105,2]
[350590844,1737981040548,-599.81,0.000105,2]
[350590845,1737981040559,-355.31952728,0.000105,2]
[350590861,1737981043182,-417.24047272,0.000105,2]
[350590862,1737981043192,-150.0,0.000105,2]
[350590863,1737981043202,-438.93,0.000105,2]
[350590864,1737981043212,-30.22952728,0.000105,2]
[350590865,1737981043237,-274.71047272,0.000105,2]
[350590866,1737981043247,-1000.0,0.0001058,2]
[350590867,1737981043256,-1000.0,0.0001058,2]
[350590868,1737981043265,-1000.0,0.0001058,2]
[350590869,1737981043274,-1000.0,0.0001058,2]
[350590870,1737981043283,-1000.0,0.0001058,2]
[350590871,1737981043293,-1000.0,0.0001058,2]
[350590872,1737981043302,-249.53001797,0.0001058,2]
[350590887,1737981046288,-750.46998203,0.0001058,2]
[350590888,1737981046298,-273.0,0.0001058,2]
[350590889,1737981046308,-1000.0,0.00010582,2]
[350590890,1737981046318,-250.96,0.00010665,2]
[350590891,1737981046327,-710.64846504,0.0001068,2]
[350590892,1737981046337,-5000.0,0.0001068,2]
[350590893,1737981046347,-670.0,0.000107,3]
[350590894,1737981046357,-983.1,0.00010709,2]
[350590895,1737981046367,-448.46,0.00010709,2]
[350590896,1737981046376,-298.28,0.00010709,2]
[350590897,1737981046386,-298.28,0.00010709,2]
[350590898,1737981046395,-983.1,0.00010709,2]
[350590899,1737981046404,-298.28,0.00010709,2]
[350590900,1737981046414,-983.1,0.00010709,2]
[350590901,1737981046423,-983.1,0.00010709,2]
[350590902,1737981046433,-150.0,0.00010709,2]
[350590903,1737981046443,-298.28,0.00010709,2]
[350590904,1737981046453,-298.28,0.00010709,2]
[350590905,1737981046463,-150.0,0.00010709,2]
[350590906,1737981046474,-656.29,0.00010709,2]
[350590907,1737981046484,-298.28,0.00010709,2]
[350590908,1737981046493,-150.0,0.00010709,2]
[350590909,1737981046503,-298.28,0.00010709,2]
[350590910,1737981046513,-150.0,0.00010709,2]
[350590911,1737981046523,-150.0,0.00010709,2]
[350590912,1737981046532,-150.0,0.00010709,2]
[350590913,1737981046542,-298.28,0.00010709,2]
[350590914,1737981046552,-150.0,0.00010709,2]
[350590915,1737981046562,-298.28,0.00010709,2]
[350590916,1737981046571,-245.06,0.00010714,2]
[350590917,1737981046581,-500.0,0.00010773,2]
[350590918,1737981046590,-354.23262687,0.00010773,2]
[350590919,1737981046601,-501.11602995,0.00010773,2]
[350590920,1737981046611,-420.0,0.00010777,2]
[350590921,1737981046620,-175.88874901,0.00010779,2]
[350590922,1737981046629,-1936.901,0.00010779,2]
[350590923,1737981046638,-3240.31641065,0.00010779,2]
[350590924,1737981046667,-9912.93455896,0.00010779,2]
[350590925,1737981046706,-36800.6482217,0.00010779,2]
[350590926,1737981046716,-246.89,0.0001078,2]
[350590928,1737981046725,-260284.94795906,0.0001078,2]
[350590937,1737981060244,677.65,8.573e-05,2]
[350590939,1737981668749,-450.0,0.00023,120]
[350590945,1737981923695,643.76,8.219e-05,2]
[350590959,1737982232310,-438.16,9.842e-05,2]
[350590960,1737982232320,-252.0,9.872e-05,2]
[350590961,1737982232329,-236.839997,9.902e-05,2]
[350590962,1737982232491,-13.160003,9.902e-05,2]
[350590963,1737982232501,-343.59,9.931e-05,2]
[350590964,1737982232511,-1000.0,9.931e-05,2]
[350590965,1737982232521,-570.35,0.00010094,2]
[350590966,1737982232531,-201.57,0.00010137,2]
[350590967,1737982232540,-643.76,0.00010469,2]
[350590968,1737982232550,-249.18,0.000105,2]
[350590969,1737982232559,-245.88,0.0001056,2]
[350590970,1737982232568,-253.37,0.00010619,2]
[350590971,1737982232578,-300.0,0.00010669,2]
[350590972,1737982232588,-3000.0,0.0001067,2]
[350590973,1737982232598,-999.99,0.0001067,2]
[350590974,1737982232614,-150.99,0.0001067,2]
[350590975,1737982232624,-609.12725574,0.0001068,2]
[350590976,1737982232634,-1778.0137,0.0001068,2]
[350590977,1737982232644,-854.3096294,0.0001068,2]
[350590978,1737982232653,-150.0,0.00010699,2]
[350590979,1737982232663,-1979.55174885,0.000107,2]
[350590980,1737982232672,-32104.74714743,0.000107,2]
[350590981,1737982232681,-150.51,0.00010715,2]
[350590982,1737982232690,-300.27,0.00010715,2]
[350590983,1737982232700,-438.12,0.00010715,2]
[350590984,1737982232709,-250.38,0.00010737,2]
[350590985,1737982232719,-500.0,0.00010746,2]
[350590986,1737982232728,-500.0,0.00010746,2]
[350590987,1737982232738,-500.0,0.00010746,2]
[350590988,1737982232747,-500.0,0.00010746,2]
[350590989,1737982232757,-500.0,0.00010746,2]
[350590990,1737982232766,-452.4724,0.00010746,2]
[350590991,1737982232775,-1000.0,0.00010746,2]
[350590992,1737982232784,-1000.0,0.00010746,2]
[350590993,1737982232794,-600.2659,0.00010746,2]
[350590994,1737982232803,-500.0,0.00010773,2]
[350590995,1737982232812,-1382.5318526,0.00010779,2]
[350590996,1737982232821,-1037.10875048,0.00010779,3]
[350590997,1737982232830,-639.85407934,0.00010779,2]
[350590998,1737982232839,-164.664,0.0001078,2]
[350590999,1737982232848,-1292.0,0.0001078,2]
[350591000,1737982232861,-18244.23096796,0.0001078,2]
[350591001,1737982232872,-119000.00001528,0.0001078,2]
[350591002,1737982232883,-340.85467896,0.0001078,2]
[350591003,1737982232915,-576.47308612,0.0001078,2]
[350591004,1737982232927,-264473.15207238,0.0001078,2]
[350591005,1737982233452,-11057.43653411,0.0001078,2]
[350591006,1737982233499,-1396.50221221,0.0001078,2]
[350591009,1737982238255,-592.27317904,0.0001078,2]
[350591010,1737982238274,-104520.00000003,0.0001078,2]
[350591011,1737982238286,-11892.72271579,0.0001078,2]
[350591012,1737982238319,-941.53953476,0.0001078,2]
[350591013,1737982238330,-3823.7314,0.0001078,2]
[350591014,1737982238432,-14554.64336531,0.0001078,2]
[350591015,1737982238444,-49853.75702668,0.0001078,2]
[350591016,1737982238496,-516.65146994,0.0001078,2]
[350591017,1737982238508,-7800.0,0.0001078,2]
[350591018,1737982238622,-13968.27707855,0.0001078,2]
[350591019,1737982238677,-1520.0,0.0001078,2]
[350591098,1737982240270,-585.66278031,0.0001078,2]
[350591099,1737982240281,-28446.36022847,0.0001078,2]
[350591100,1737982240293,-4217.54015466,0.0001078,2]
[350591101,1737982240305,-1559.31079056,0.0001078,2]
[350591102,1737982240317,-493.20959227,0.0001078,2]
[350591103,1737982240328,-807.70633872,0.0001078,2]
[350591104,1737982240347,-2450.16000001,0.0001078,2]
[350591105,1737982240358,-9927.3,0.0001078,2]
[350591106,1737982240444,-1056.0,0.0001078,2]
[350591107,1737982240453,-6272.7998,0.0001078,2]
[350591108,1737982240465,-397.710302,0.0001078,2]
[350591109,1737982240504,-2082.3969916,0.0001078,2]
[350591110,1737982240516,-997.45037896,0.0001078,2]
[350591276,1737982243256,-69724.94034401,0.0001078,2]
[350591280,1737982243313,-45854.07656419,0.0001078,2]
[350591289,1737982243776,-11089.61427449,0.0001078,2]
[350591290,1737982243811,-1585.0,0.0001078,2]
[350591298,1737982246412,-3431.7,0.0001078,2]
[350591299,1737982246507,-99470.33492552,0.0001078,2]
[350591300,1737982246678,-4999.98,0.0001078,2]
[350591301,1737982246690,-597.45324798,0.0001078,2]
[350591302,1737982246736,-698.33435932,0.0001078,2]
[350591303,1737982246748,-281.03,0.0001078,2]
[350591306,1737982302019,652.12686475,9.781e-05,7]
[350591307,1737982538047,271.97,0.00023,120]
[350591310,1737982872020,671.13,8.219e-05,2]
[350591311,1737982896953,164.92,7.843e-05,2]
[350591317,1737983262835,15000.0,0.00023,120]
[350591318,1737983303480,53.06,7.769e-05,2]
[350591319,1737983303502,111.08,7.769e-05,2]
[350591321,1737983419610,-250.0,9.711e-05,2]
[350591322,1737983419633,-171.79,9.756e-05,2]
[350591323,1737983419657,-456.28,9.856e-05,2]
[350591324,1737983419681,-1000.0,9.895e-05,2]
[350591325,1737983419704,-629.97116707,9.979e-05,2]
[350591326,1737983419727,-629.97116707,0.00010037,2]
[350591327,1737983419750,-1550.12,0.000101,2]
[350591328,1737983419772,-156.1,0.00010137,2]
[350591329,1737983419795,-619.38004646,0.00010137,2]
[350591330,1737983419816,-471.64,0.000102,2]
[350591331,1737983419837,-161.751,0.0001024,2]
[350591332,1737983419859,-202.0,0.00010312,2]
[350591333,1737983419881,-300.0,0.000104,3]
[350591334,1737983419903,-671.13,0.00010468,2]
[350591335,1737983419926,-600.0,0.000105,3]
[350591345,1737983431456,-3156.59999991,0.0001057,2]
[350591350,1737983431983,-338.76805,0.0001057,2]
[350591352,1737983431996,-393.87,0.0001057,2]
[350591355,1737983432021,-40947.61598708,0.0001057,2]
[350591356,1737983432032,-3909.28339645,0.0001057,2]
[350591357,1737983432043,-20169.97913911,0.0001057,2]
[350591358,1737983432058,-8484.65009237,0.0001057,2]
[350591360,1737983432077,-1868.59057875,0.0001057,2]
[350591363,1737983432096,-1870.0,0.0001057,2]
[350591367,1737983432123,-18694.7302873,0.0001057,2]
[350591370,1737983432133,-407.2420021,0.0001057,2]
[350591372,1737983432145,-2350.87046693,0.0001057,2]
[350591374,1737983432154,-1000.0,0.000106,2]
[350591376,1737983432163,-900.0,0.000106,3]
[350591378,1737983432172,-1005.0116,0.00010668,2]
[350591380,1737983432182,-862.88525485,0.00010673,2]
[350591382,1737983432191,-300.41,0.00010685,2]
[350591384,1737983432200,-890.99,0.00010685,2]
[350591386,1737983432209,-173.4143917,0.000107,2]
[350591388,1737983432218,-573.09640245,0.000107,2]
[350591390,1737983432227,-1200.0,0.000107,3]
[350591392,1737983432236,-2121.297,0.00010767,2]
[350591394,1737983432245,-150.0,0.00010767,2]
[350591395,1737983432254,-1020.20226097,0.00010767,2]
[350591396,1737983432262,-130881.8226771,0.00010768,2]
[350591397,1737983432273,-19089.461263,0.00010768,2]
[350591398,1737983432284,-30101.4065899,0.00010768,2]
[350591399,1737983432293,-500.87571151,0.00010773,2]
[350591400,1737983432305,-156.65146679,0.00010773,2]
[350591401,1737983432315,-500.0,0.00010773,2]
[350591402,1737983432324,-1053.10477252,0.00010779,3]
[350591403,1737983432333,-132430.44168767,0.0001078,2]
[350591404,1737983432344,-231781.45034,0.0001078,2]
[350591455,1737983437484,-258.25686478,0.0001078,2]
[350591456,1737983437503,-421.1567652,0.0001078,2]
[350591457,1737983437538,-30235.84721344,0.0001078,2]
[350591458,1737983437550,-6368.11,0.0001078,2]
[350591460,1737983437564,-3070.18412211,0.0001078,2]
[350591462,1737983437579,-6681.53000001,0.0001078,2]
[350591464,1737983437592,-1149.382,0.0001078,2]
[350591466,1737983437605,-311.72519282,0.0001078,2]
[350591468,1737983437618,-75685.94887891,0.0001078,2]
[350591469,1737983437641,-51315.35883873,0.0001078,2]
[350591470,1737983437651,-150.15262132,0.0001078,2]
[350591471,1737983437662,-246.12,0.0001078,2]
[350591472,1737983437672,-252.04,0.0001078,2]
[350591473,1737983437682,-50130.22391323,0.0001078,2]
[350591474,1737983437693,-3000.0,0.0001078,2]
[350591475,1737983437702,-586.51768173,0.0001078,2]
[350591476,1737983437712,-633.0,0.000108,2]
[350591477,1737983437723,-240907.4518345,0.000108,2]
[350591478,1737983437770,-6856.81977973,0.000108,2]
[350591540,1737983439433,-681.82223212,0.000108,2]
[350591541,1737983439444,-391.02789701,0.000108,2]
[350591542,1737983439553,-669.23,0.000108,2]
[350591543,1737983439612,-2041.79089176,0.000108,2]
[350591544,1737983439946,-1541.24999996,0.000108,2]
[350591545,1737983439956,-10960.139135,0.000108,2]
[350591546,1737983439976,-4645.14050005,0.000108,2]
[350591547,1737983439987,-626.48,0.000108,2]
[350591548,1737983439998,-2246.66253941,0.000108,2]
[350591549,1737983440009,-309.26999998,0.000108,2]
[350591550,1737983440019,-2519.7908197,0.000108,2]
[350591551,1737983440031,-562.59985172,0.000108,2]
[350591571,1737983442468,-6593.2762013,0.000108,2]
[350591572,1737983442567,-540.5656742,0.000108,2]
[350591573,1737983442579,-30778.00000028,0.000108,2]
[350591579,1737983442709,-19985.85823401,0.000108,2]
[350591581,1737983442730,-461.2000035,0.000108,2]
[350591583,1737983442742,-1593.22351232,0.000108,2]
[350591585,1737983442753,-423.60717906,0.000108,2]
[350591586,1737983442796,-4683.07149268,0.000108,2]
[350591587,1737983442855,-916.86,0.000108,2]
[350591588,1737983442913,-5036.5,0.000108,2]
[350591589,1737983442925,-488.49145862,0.000108,2]
[350591590,1737983443026,-698.384581,0.000108,2]
[350591607,1737983445498,-9998.4401401,0.000108,2]
[350591608,1737983445510,-1428.63645489,0.000108,2]
[350591609,1737983445522,-31995.07486299,0.000108,2]
[350591610,1737983445535,-329.7958368,0.000108,2]
[350591611,1737983445614,-1713.12401036,0.000108,2]
[350591612,1737983445625,-5044.092048,0.000108,2]
[350591613,1737983445636,-2161.77418476,0.000108,2]
[350591614,1737983445649,-5039.5,0.000108,2]
[350591615,1737983445661,-4717.6959659,0.000108,2]
[350591616,1737983445676,-7028.028,0.000108,2]
[350591617,1737983446015,-7669.91006552,0.000108,2]
[350591618,1737983446028,-2126.40470889,0.000108,2]
[350591619,1737983446039,-2033.57867502,0.000108,2]
[350591620,1737983446076,-345926.13690713,0.000108,2]
[350591628,1737983527366,7051.65,0.00023,120]
[350591629,1737983655175,150.0,0.00023,120]
[350591630,1737983655455,150.0,0.00023,120]
[350591631,1737983655776,150.0,0.00023,120]
[350591632,1737983656096,150.0,0.00023,120]
[350591633,1737983656854,150.0,0.00023,120]
[350591634,1737983657156,150.0,0.00023,120]
[350591635,1737983657451,150.0,0.00023,120]
[350591636,1737983657754,150.0,0.00023,120]
[350591637,1737983658047,200.0,0.00023,120]
[350591638,1737983658362,185.38173231,0.00023,120]
[350591639,1737983658662,192.69086615,0.00023,120]
[350591640,1737983707571,703.79,8.219e-05,2]
[350591641,1737983957094,172.23,7.912e-05,2]
[350591644,1737984320702,185.65200335,9e-05,2]
[350591657,1737984355249,5509.98734355,6.94e-05,2]
[350591869,1737984571310,150.0,0.00021119,120]
[350591870,1737984581968,668.6,8.219e-05,2]
[350591871,1737984631348,150.0,0.00021,120]
[350591891,1737984631645,-2000.0,9.651e-05,2]
[350591892,1737984631654,-1647.21,9.756e-05,2]
[350591893,1737984631664,-1000.0,9.788e-05,2]
[350591894,1737984631674,-171.79,9.815e-05,2]
[350591895,1737984631683,-314.98558354,9.815e-05,2]
[350591896,1737984631692,-250.0,9.851e-05,2]
[350591897,1737984631702,-314.98558353,9.894e-05,2]
[350591898,1737984631711,-1284.92014637,9.895e-05,2]
[350591899,1737984631720,-10135.79092246,9.895e-05,2]
[350591900,1737984631740,-19.23907754,9.895e-05,2]
[350591901,1737984631750,-150.0,9.899e-05,2]
[350591902,1737984631759,-330.80231572,9.9e-05,2]
[350591903,1737984631770,-356.15532581,9.9e-05,2]
[350591904,1737984631781,-10086.0,9.9e-05,2]
[350591905,1737984631792,-3322.59159,9.9e-05,2]
[350591906,1737984631804,-13190.9849307,9.9e-05,2]
[350591907,1737984631815,-269.5839756,9.9e-05,2]
[350591908,1737984631825,-350.52,9.949e-05,2]
[350591909,1737984631835,-6528.87903587,0.0001,2]
[350591910,1737984631845,-55596.65870253,0.0001,2]
[350591911,1737984631897,-11987.6,0.0001,2]
[350591912,1737984631908,-873.370328,0.0001,2]
[350591913,1737984631933,-3195.6794798,0.0001,2]
[350591914,1737984631944,-19079.41816093,0.0001,2]
[350591915,1737984631956,-762.29891847,0.0001,2]
[350591916,1737984631969,-821.9709613,0.0001,2]
[350591917,1737984632006,-70293.51163374,0.0001,2]
[350591918,1737984632018,-1153.87,0.0001,2]
[350591919,1737984632030,-3112.60000001,0.0001,2]
[350591920,1737984632041,-200603.58490253,0.0001,2]
[350591921,1737984632052,-141022.8435138,0.0001,2]
[350591922,1737984632062,-150.73,0.00010137,2]
[350591923,1737984632071,-199.29,0.00010137,2]
[350591924,1737984632080,-1697.037,0.00010166,2]
[350591925,1737984632090,-13029.97,0.00010167,2]
[350591926,1737984632099,-161.946,0.0001026,2]
[350591928,1737984632108,-668.6,0.00010464,2]
[350591930,1737984632118,-151.2,0.00010537,2]
[350591932,1737984632127,-150.32,0.00010537,2]
[350591934,1737984632136,-3000.0,0.0001069,2]
[350591936,1737984632146,-1000.0,0.00010746,2]
[350591938,1737984632155,-1000.0,0.00010746,2]
[350591940,1737984632165,-1000.0,0.00010746,2]
[350591942,1737984632174,-811.2348,0.00010746,2]
[350591944,1737984632183,-400164.4525963,0.000108,2]
[350591946,1737984632192,-45391.91411743,0.000108,2]
[350591948,1737984632202,-150.0,0.000108,2]
[350591950,1737984632211,-1001.0,0.000108,2]
[350591952,1737984632221,-894.0,0.000108,2]
[350591954,1737984632231,-1000.0,0.000108,2]
[350591956,1737984632240,-1000.0,0.000108,2]
[350591958,1737984632249,-150.16012896,0.000108,2]
[350591960,1737984632258,-491.22548778,0.00010858,2]
[350591962,1737984632267,-1745.00035211,0.00010858,2]
[350591964,1737984632278,-368.54951253,0.00010858,2]
[350591966,1737984632287,-655.672277,0.00010858,2]
[350591967,1737984632296,-1000.0,0.00010858,2]
[350591969,1737984632306,-1000.0,0.00010858,2]
[350591971,1737984632315,-1000.0,0.00010858,2]
[350591973,1737984632324,-1000.0,0.00010858,2]
[350591975,1737984632333,-1000.0,0.00010858,2]
[350591977,1737984632342,-1000.0,0.00010858,2]
[350591979,1737984632352,-1000.0,0.00010858,2]
[350591980,1737984632362,-1000.0,0.00010858,2]
[350591982,1737984632371,-1000.0,0.00010858,2]
[350591984,1737984632380,-1000.0,0.00010858,2]
[350591986,1737984632390,-1000.0,0.00010858,2]
[350591988,1737984632399,-1000.0,0.00010858,2]
[350591990,1737984632409,-1000.0,0.00010858,2]
[350591992,1737984632418,-1000.0,0.00010858,2]
[350591994,1737984632427,-1000.0,0.00010858,2]
[350591996,1737984632437,-1000.0,0.00010858,2]
[350591998,1737984632446,-1000.0,0.00010858,2]
[350592000,1737984632455,-1000.0,0.00010858,2]
[350592002,1737984632464,-1000.0,0.00010858,2]
[350592024,1737984632644,-1000.0,0.00010858,2]
[350592026,1737984632665,-1000.0,0.00010858,2]
[350592028,1737984632676,-1000.0,0.00010858,2]
[350592030,1737984632686,-1000.0,0.00010858,2]
[350592032,1737984632696,-1000.0,0.00010858,2]
[350592033,1737984632705,-1000.0,0.00010858,2]
[350592034,1737984632714,-1000.0,0.00010858,2]
[350592035,1737984632723,-1000.0,0.00010858,2]
[350592036,1737984632738,-1000.0,0.00010858,2]
[350592037,1737984632748,-1000.0,0.00010858,2]
[350592038,1737984632758,-1000.0,0.00010858,2]
[350592039,1737984632767,-1000.0,0.00010858,2]
[350592040,1737984632777,-1000.0,0.00010858,2]
[350592041,1737984632786,-1000.0,0.00010858,2]
[350592042,1737984632795,-1000.0,0.00010858,2]
[350592043,1737984632804,-255.0,0.00010889,2]
[350592044,1737984632813,-500.0,0.00010957,2]
[350592045,1737984632823,-561.0,0.00010958,2]
[350592046,1737984632833,-151.0,0.00010958,2]
[350592047,1737984632842,-151.0,0.00010958,2]
[350592048,1737984632851,-151.0,0.00010958,2]
[350592049,1737984632861,-151.0,0.00010958,2]
[350592050,1737984632870,-151.0,0.00010958,2]
[350592051,1737984632879,-151.0,0.00010958,2]
[350592052,1737984632890,-151.0,0.00010958,2]
[350592053,1737984632900,-151.0,0.00010958,2]